fUSD/lending_fUSD_20250115
["ID","MTS","AMOUNT","RATE_DAILY","PERIOD"]
[348963446,1736899311625,225.6,8.219e-05,2]
[348963448,1736899427450,205.14,9.991e-05,2]
[348963449,1736899462632,2600.0,0.0001961,120]
[348963450,1736899471692,150.0,0.0001893,120]
[348963452,1736899534895,2600.0,0.0001961,120]
[348963453,1736899571355,156.11927755,9.924e-05,2]
[348963454,1736899591408,3830.76913052,9.924e-05,2]
[348963463,1736899650861,150.0,0.00019075,120]
[348963464,1736899660819,250.0,9.976e-05,2]
[348963468,1736899770746,150.0,0.00018908,120]
[348963472,1736899830751,200.0,9.969e-05,2]
[348963488,1736899832509,-23900.0,0.00010019,2]
[348963489,1736899832518,-14511.29,0.00010023,2]
[348963490,1736899832528,-250.0,0.00010024,2]
[348963491,1736899832537,-154.23,0.00010137,2]
[348963492,1736899832547,-695.86,0.00010137,2]
[348963493,1736899832556,-1000.0,0.00010169,2]
[348963494,1736899832565,-271.18,0.00010176,2]
[348963495,1736899832575,-161.88,0.00010201,2]
[348963496,1736899832584,-1500.0,0.00010278,2]
[348963497,1736899832594,-164.01,0.00010329,2]
[348963498,1736899832604,-225.6,0.00010481,2]
[348963499,1736899832615,-150.0,0.00010504,2]
[348963500,1736899832624,-9410.44843597,0.00010505,2]
[348963501,1736899832636,-3234.59175643,0.00010505,2]
[348963502,1736899832658,-504.48892086,0.00010505,2]
[348963503,1736899832681,-644.92069932,0.00010505,2]
[348963504,1736899832693,-646.9888024,0.00010505,2]
[348963505,1736899832754,-5591.79669881,0.00010505,2]
[348963506,1736899832767,-830.1793896,0.00010505,2]
[348963507,1736899832779,-1209.496,0.00010505,2]
[348963508,1736899832799,-16732.26657061,0.00010505,2]
[348963509,1736899832809,-3557.30530424,0.00010505,2]
[348963510,1736899832820,-1244.15535,0.00010505,2]
[348963511,1736899832860,-6497.1886532,0.00010505,2]
[348963512,1736899832872,-6976.99988313,0.00010505,2]
[348963513,1736899832901,-1663.89699298,0.00010505,2]
[348963514,1736899832912,-1088.05966313,0.00010505,2]
[348963515,1736899832923,-985.63986532,0.00010505,2]
[348963523,1736899838215,-375.13799864,0.00010505,2]
[348963524,1736899838227,-1085.54122135,0.00010505,2]
[348963525,1736899838241,-1391.89779401,0.00010505,2]
[348963526,1736899838252,-178.79,0.00010556,2]
[348963527,1736899838263,-676.05114348,0.00010611,2]
[348963528,1736899838274,-454.0,0.00010822,2]
[348963529,1736899838283,-3256.8256,0.00010899,2]
[348963530,1736899838292,-898.2585,0.00010899,2]
[348963531,1736899838303,-250.8032,0.00010899,2]
[348963532,1736899838312,-161.83858765,0.00010899,2]
[348963533,1736899838322,-13512.07907831,0.000109,2]
[348963534,1736899838334,-25123.0463099,0.000109,2]
[348963535,1736899838346,-826.5321856,0.000109,2]
[348963536,1736899838357,-936.22883448,0.000109,2]
[348963537,1736899838370,-13982.71289915,0.000109,2]
[348963538,1736899838395,-6596.03655,0.000109,2]
[348963539,1736899838407,-1328.74504256,0.000109,2]
[348963540,1736899838416,-500.0,0.00010999,2]
[348963541,1736899838426,-500.0,0.00010999,2]
[348963542,1736899838435,-1891.3,0.00010999,2]
[348963543,1736899838445,-562.57713393,0.00010999,2]
[348963544,1736899838456,-276.02286607,0.00010999,2]
[348963545,1736899838466,-500.0,0.00010999,2]
[348963546,1736899838475,-500.0,0.00010999,2]
[348963547,1736899838485,-558.21,0.00010999,2]
[348963548,1736899838494,-500.0,0.00010999,2]
[348963549,1736899838505,-825.99,0.00010999,2]
[348963550,1736899838514,-500.0,0.00010999,2]
[348963551,1736899838524,-1215.24,0.00010999,2]
[348963552,1736899838534,-500.0,0.00010999,2]
[348963553,1736899838544,-654.94,0.00010999,2]
[348963554,1736899838553,-500.0,0.00010999,2]
[348963555,1736899838563,-500.0,0.00010999,2]
[348963556,1736899838573,-1164.83,0.00010999,2]
[348963557,1736899838582,-500.0,0.00010999,2]
[348963558,1736899838592,-680.12,0.00010999,2]
[348963559,1736899838602,-500.0,0.00010999,2]
[348963560,1736899838612,-500.0,0.00010999,2]
[348963561,1736899838622,-1654.54,0.00010999,2]
[348963562,1736899838631,-1948.5,0.00010999,2]
[348963563,1736899838641,-500.0,0.00010999,2]
[348963565,1736899838650,-500.0,0.00010999,2]
[348963567,1736899838661,-500.0,0.00010999,2]
[348963569,1736899838671,-500.0,0.00010999,2]
[348963571,1736899838680,-1033.8,0.00010999,2]
[348963572,1736899838690,-1892.69,0.00010999,2]
[348963573,1736899838699,-500.0,0.00010999,2]
[348963574,1736899838709,-500.0,0.00010999,2]
[348963575,1736899838720,-719.41,0.00010999,2]
[348963576,1736899838729,-1000.0,0.00010999,2]
[348963577,1736899838739,-571.42,0.00010999,2]
[348963578,1736899838748,-717.08,0.00010999,2]
[348963581,1736899838758,-573.32,0.00010999,2]
[348963583,1736899838767,-500.0,0.00010999,2]
[348963584,1736899838776,-500.0,0.00010999,2]
[348963585,1736899838786,-671.88,0.00010999,2]
[348963586,1736899838795,-907.56,0.00010999,2]
[348963587,1736899838804,-1316.77,0.00010999,2]
[348963589,1736899838813,-1083.42,0.00010999,2]
[348963591,1736899838824,-500.0,0.00010999,2]
[348963593,1736899838833,-500.0,0.00010999,2]
[348963595,1736899838846,-7357.4681,0.00011071,2]
[348963597,1736899838858,-161.83858765,0.00011085,2]
[348963598,1736899838870,-3000.0,0.0001114,2]
[348963599,1736899838883,-21725.30388644,0.0001115,2]
[348963600,1736899838895,-1088.05966313,0.0001115,2]
[348963601,1736899838905,-217.62652028,0.0001115,2]
[348963603,1736899838915,-5000.0,0.00011173,2]
[348963605,1736899838925,-200.0,0.000112,2]
[348963608,1736899838936,-150.0,0.00011233,2]
[348963610,1736899838947,-150.0,0.00011233,2]
[348963612,1736899838959,-150.0,0.00011233,2]
[348963614,1736899838974,-150.0,0.00011233,2]
[348963617,1736899838985,-150.0,0.00011233,2]
[348963619,1736899838997,-150.0,0.00011233,2]
[348963621,1736899839008,-150.0,0.00011233,2]
[348963623,1736899839019,-150.0,0.00011233,2]
[348963625,1736899839031,-205.14,0.0001124,2]
[348963628,1736899839046,-500.0,0.00011255,2]
[348963630,1736899839057,-500.0,0.00011255,2]
[348963632,1736899839068,-500.0,0.00011255,2]
[348963635,1736899839081,-627.16,0.00011255,2]
[348963637,1736899839091,-500.0,0.00011255,2]
[348963639,1736899839101,-500.0,0.00011255,2]
[348963641,1736899839111,-710.86,0.00011255,2]
[348963643,1736899839121,-1096.43,0.00011255,2]
[348963645,1736899839133,-1200.4,0.00011255,2]
[348963647,1736899839144,-1160.69,0.00011255,2]
[348963649,1736899839154,-789.57,0.00011255,2]
[348963651,1736899839165,-720.14,0.00011255,2]
[348963653,1736899839177,-518.27,0.00011255,2]
[348963656,1736899839188,-1474.41,0.00011255,2]
[348963657,1736899839200,-556.34,0.00011255,2]
[348963658,1736899839211,-553.96,0.00011255,2]
[348963659,1736899839223,-580.927481,0.00011255,2]
[348963660,1736899839235,-500.0,0.00011255,2]
[348963661,1736899839246,-750.05,0.00011255,2]
[348963662,1736899839258,-2081.45,0.00011255,2]
[348963663,1736899839270,-530.993958,0.00011255,2]
[348963664,1736899839280,-500.0,0.00011255,2]
[348963665,1736899839292,-500.0,0.00011255,2]
[348963666,1736899839305,-1393.34,0.00011255,2]
[348963667,1736899839316,-500.0,0.00011255,2]
[348963668,1736899839328,-583.39,0.00011255,2]
[348963669,1736899839341,-500.0,0.00011255,2]
[348963670,1736899839352,-323.73999408,0.00011256,2]
[348963671,1736899839364,-500.0,0.00011256,2]
[348963672,1736899839376,-500.0,0.00011256,2]
[348963673,1736899839386,-500.0,0.00011256,2]
[348963674,1736899839398,-500.0,0.00011256,2]
[348963675,1736899839409,-500.0,0.00011256,2]
[348963676,1736899839420,-500.0,0.00011256,2]
[348963677,1736899839432,-500.0,0.00011256,2]
[348963678,1736899839444,-500.0,0.00011256,2]
[348963679,1736899839456,-500.0,0.00011256,2]
[348963680,1736899839467,-500.0,0.00011256,2]
[348963681,1736899839480,-500.0,0.00011256,2]
[348963682,1736899839492,-500.0,0.00011256,2]
[348963683,1736899839502,-500.0,0.00011256,2]
[348963684,1736899839511,-500.0,0.00011256,2]
[348963685,1736899839522,-500.0,0.00011256,2]
[348963686,1736899839533,-500.0,0.00011256,2]
[348963687,1736899839544,-500.0,0.00011256,2]
[348963688,1736899839555,-500.0,0.00011256,2]
[348963689,1736899839567,-500.0,0.00011256,2]
[348963690,1736899839581,-500.0,0.00011256,2]
[348963691,1736899839593,-500.0,0.00011256,2]
[348963692,1736899839603,-500.0,0.00011256,2]
[348963693,1736899839612,-500.0,0.00011256,2]
[348963694,1736899839621,-500.0,0.00011256,2]
[348963695,1736899839631,-500.0,0.00011256,2]
[348963696,1736899839642,-500.0,0.00011256,2]
[348963697,1736899839652,-500.0,0.00011256,2]
[348963698,1736899839663,-500.0,0.00011256,2]
[348963699,1736899839675,-500.0,0.00011256,2]
[348963700,1736899839687,-500.0,0.00011256,2]
[348963701,1736899839699,-500.0,0.00011256,2]
[348963702,1736899839710,-500.0,0.00011256,2]
[348963703,1736899839720,-500.0,0.00011256,2]
[348963704,1736899839731,-511.29238355,0.00011256,2]
[348963705,1736899839741,-500.0,0.00011256,2]
[348963706,1736899839751,-500.0,0.00011256,2]
[348963707,1736899839761,-500.0,0.00011256,2]
[348963708,1736899839771,-500.0,0.00011256,2]
[348963709,1736899839783,-500.0,0.00011256,2]
[348963710,1736899839795,-151.0,0.00011256,2]
[348963711,1736899839805,-500.0,0.00011256,2]
[348963712,1736899839815,-500.0,0.00011256,2]
[348963713,1736899839827,-500.0,0.00011256,2]
[348963714,1736899839837,-500.0,0.00011256,2]
[348963715,1736899839847,-3035.64,0.00011256,2]
[348963716,1736899839862,-500.0,0.00011256,2]
[348963717,1736899839872,-500.0,0.00011256,2]
[348963718,1736899839884,-500.0,0.00011256,2]
[348963719,1736899839896,-500.0,0.00011256,2]
[348963720,1736899839908,-500.0,0.00011256,2]
[348963721,1736899839919,-500.0,0.00011256,2]
[348963722,1736899839929,-551.69,0.00011256,2]
[348963723,1736899839939,-500.0,0.00011256,2]
[348963724,1736899839952,-500.0,0.00011256,2]
[348963725,1736899839963,-500.0,0.00011256,2]
[348963726,1736899839977,-892.65,0.00011256,2]
[348963727,1736899839988,-500.0,0.00011256,2]
[348963728,1736899839998,-2116.18,0.00011256,2]
[348963729,1736899840010,-500.0,0.00011256,2]
[348963730,1736899840021,-500.0,0.00011256,2]
[348963731,1736899840031,-1946.54,0.00011256,2]
[348963732,1736899840043,-500.0,0.00011256,2]
[348963734,1736899840054,-578.42,0.00011256,2]
[348963735,1736899840065,-500.0,0.00011256,2]
[348963736,1736899840076,-500.0,0.00011256,2]
[348963737,1736899840086,-1519.02,0.00011256,2]
[348963738,1736899840097,-945.24,0.00011256,2]
[348963740,1736899840107,-500.0,0.00011256,2]
[348963741,1736899840118,-500.0,0.00011256,2]
[348963742,1736899840130,-1740.78,0.00011256,2]
[348963743,1736899840141,-500.0,0.00011256,2]
[348963744,1736899840152,-500.0,0.00011256,2]
[348963745,1736899840164,-709.4,0.00011256,2]
[348963746,1736899840175,-500.0,0.00011256,2]
[348963747,1736899840186,-500.0,0.00011256,2]
[348963748,1736899840196,-500.0,0.00011256,2]
[348963749,1736899840206,-576.19,0.00011256,2]
[348963750,1736899840217,-500.0,0.00011256,2]
[348963751,1736899840227,-500.0,0.00011256,2]
[348963752,1736899840239,-500.0,0.00011256,2]
[348963753,1736899840250,-500.0,0.00011256,2]
[348963754,1736899840262,-523.05,0.00011256,2]
[348963755,1736899840273,-500.0,0.00011256,2]
[348963756,1736899840283,-151.0,0.00011257,2]
[348963757,1736899840293,-151.0,0.00011257,2]
[348963758,1736899840303,-151.0,0.00011257,2]
[348963759,1736899840315,-200.0,0.00011258,2]
[348963760,1736899840327,-2000.0,0.00011258,2]
[348963761,1736899840337,-200.0,0.00011258,2]
[348963762,1736899840348,-648.54,0.00011258,2]
[348963763,1736899840359,-3467.7,0.00011258,2]
[348963764,1736899840370,-947.24,0.00011258,2]
[348963765,1736899840381,-1436.89,0.00011258,2]
[348963766,1736899840391,-855.8,0.00011258,2]
[348963767,1736899840402,-500.0,0.00011258,2]
[348963768,1736899840412,-776.37,0.00011258,2]
[348963769,1736899840422,-1931.96,0.00011258,2]
[348963770,1736899840432,-500.0,0.00011259,2]
[348963771,1736899840443,-522.9379559,0.00011259,2]
[348963772,1736899840453,-500.8232297,0.00011259,2]
[348963773,1736899840464,-505.04864856,0.00011259,2]
[348963774,1736899840475,-500.0,0.00011259,2]
[348963775,1736899840485,-500.79829136,0.00011259,2]
[348963776,1736899840495,-501.00711188,0.00011259,2]
[348963777,1736899840505,-500.0,0.00011259,2]
[348963778,1736899840515,-500.0,0.00011259,2]
[348963779,1736899840526,-580.53368935,0.00011259,2]
[348963780,1736899840536,-503.43702755,0.00011259,2]
[348963781,1736899840547,-16350.0,0.0001126,2]
[348963782,1736899840558,-151.0,0.0001126,2]
[348963783,1736899840568,-151.0,0.0001126,2]
[348963784,1736899840583,-151.0,0.0001126,2]
[348963785,1736899840593,-161.83858765,0.00011271,2]
[348963786,1736899840604,-879.92,0.00011271,2]
[348963787,1736899840614,-500.0,0.00011271,2]
[348963788,1736899840625,-539.68,0.00011271,2]
[348963789,1736899840635,-500.0,0.00011271,2]
[348963790,1736899840645,-888.25,0.00011271,2]
[348963791,1736899840655,-804.93,0.00011271,2]
[348963792,1736899840666,-804.93,0.00011271,2]
[348963793,1736899840676,-500.0,0.00011271,2]
[348963794,1736899840687,-1847.19,0.00011271,2]
[348963795,1736899840698,-616.46,0.00011271,2]
[348963796,1736899840708,-3801.72,0.00011271,2]
[348963797,1736899840719,-685.37,0.00011271,2]
[348963798,1736899840730,-500.0,0.00011271,2]
[348963799,1736899840742,-500.0,0.00011271,2]
[348963800,1736899840752,-1013.48,0.00011271,2]
[348963801,1736899840763,-500.0,0.00011271,2]
[348963802,1736899840774,-723.06,0.00011272,2]
[348963803,1736899840786,-367.29528703,0.00011273,2]
[348963804,1736899840798,-500.0,0.00011273,2]
[348963805,1736899840809,-500.0,0.00011273,2]
[348963806,1736899840819,-1891.3,0.00011273,2]
[348963807,1736899840833,-838.6,0.00011273,2]
[348963808,1736899840843,-500.0,0.00011273,2]
[348963809,1736899840853,-500.0,0.00011273,2]
[348963810,1736899840863,-558.21,0.00011273,2]
[348963811,1736899840874,-825.99,0.00011273,2]
[348963812,1736899840884,-500.0,0.00011273,2]
[348963813,1736899840894,-1215.24,0.00011273,2]
[348963814,1736899840904,-500.0,0.00011273,2]
[348963815,1736899840914,-654.94,0.00011273,2]
[348963816,1736899840924,-500.0,0.00011273,2]
[348963817,1736899840934,-500.0,0.00011273,2]
[348963818,1736899840946,-151.0,0.00011273,2]
[348963819,1736899840957,-1164.83,0.00011273,2]
[348963820,1736899840969,-500.0,0.00011273,2]
[348963821,1736899840979,-680.12,0.00011273,2]
[348963822,1736899840990,-500.0,0.00011273,2]
[348963823,1736899840999,-500.0,0.00011273,2]
[348963824,1736899841011,-1654.54,0.00011273,2]
[348963825,1736899841020,-1948.5,0.00011273,2]
[348963826,1736899841030,-500.0,0.00011273,2]
[348963827,1736899841041,-500.0,0.00011273,2]
[348963828,1736899841052,-500.0,0.00011273,2]
[348963829,1736899841063,-500.0,0.00011273,2]
[348963830,1736899841073,-1033.8,0.00011273,2]
[348963831,1736899841084,-279.808328,0.00011273,2]
[348963832,1736899841094,-1892.69,0.00011273,2]
[348963833,1736899841104,-500.0,0.00011273,2]
[348963834,1736899841114,-719.41,0.00011273,2]
[348963835,1736899841125,-1000.0,0.00011273,2]
[348963836,1736899841135,-571.42,0.00011273,2]
[348963837,1736899841145,-717.08,0.00011273,2]
[348963838,1736899841154,-573.32,0.00011273,2]
[348963839,1736899841164,-500.0,0.00011273,2]
[348963840,1736899841175,-671.88,0.00011273,2]
[348963841,1736899841185,-907.56,0.00011273,2]
[348963842,1736899841195,-1316.77,0.00011273,2]
[348963843,1736899841205,-1083.42,0.00011273,2]
[348963844,1736899841215,-500.0,0.00011273,2]
[348963845,1736899841227,-500.0,0.00011273,2]
[348963846,1736899841237,-288.36,0.00011279,2]
[348963847,1736899841247,-500.0,0.000113,2]
[348963848,1736899841257,-500.0,0.000113,2]
[348963849,1736899841267,-500.0,0.000113,2]
[348963850,1736899841278,-500.0,0.000113,2]
[348963851,1736899841289,-500.0,0.000113,2]
[348963852,1736899841300,-500.0,0.000113,2]
[348963853,1736899841311,-500.0,0.000113,2]
[348963854,1736899841321,-610.87,0.000113,2]
[348963855,1736899841337,-500.0,0.000113,2]
[348963856,1736899841348,-500.0,0.000113,2]
[348963857,1736899841358,-500.0,0.000113,2]
[348963858,1736899841368,-500.0,0.000113,2]
[348963859,1736899841378,-500.0,0.000113,2]
[348963860,1736899841389,-500.0,0.000113,2]
[348963861,1736899841399,-500.0,0.000113,2]
[348963862,1736899841410,-500.0,0.000113,2]
[348963863,1736899841419,-500.0,0.000113,2]
[348963864,1736899841430,-500.0,0.000113,2]
[348963865,1736899841440,-500.0,0.000113,2]
[348963866,1736899841450,-500.68,0.000113,2]
[348963867,1736899841460,-500.0,0.000113,2]
[348963868,1736899841470,-500.0,0.000113,2]
[348963869,1736899841769,-396.45,0.000113,2]
[348963870,1736899841794,-475.02,0.000113,2]
[348963871,1736899841809,-500.0,0.000113,2]
[348963872,1736899841820,-500.0,0.000113,2]
[348963873,1736899841831,-500.0,0.000113,2]
[348963874,1736899841840,-500.0,0.000113,2]
[348963875,1736899841850,-500.0,0.000113,2]
[348963876,1736899841859,-500.0,0.000113,2]
[348963877,1736899841868,-500.0,0.000113,2]
[348963878,1736899841878,-500.0,0.000113,2]
[348963879,1736899841888,-500.0,0.000113,2]
[348963880,1736899841897,-500.0,0.000113,2]
[348963881,1736899841906,-500.0,0.000113,2]
[348963882,1736899841915,-500.0,0.000113,2]
[348963883,1736899841924,-500.0,0.000113,2]
[348963884,1736899841933,-500.0,0.000113,2]
[348963885,1736899841942,-500.0,0.000113,2]
[348963886,1736899841951,-500.0,0.000113,2]
[348963887,1736899841960,-500.0,0.000113,2]
[348963888,1736899841974,-500.0,0.000113,2]
[348963889,1736899841982,-500.0,0.000113,2]
[348963890,1736899841991,-500.0,0.000113,2]
[348963891,1736899842000,-500.0,0.000113,2]
[348963892,1736899842009,-500.0,0.000113,2]
[348963893,1736899842018,-500.0,0.000113,2]
[348963894,1736899842028,-500.0,0.000113,2]
[348963895,1736899842038,-500.0,0.000113,2]
[348963896,1736899842049,-500.0,0.000113,2]
[348963897,1736899842059,-500.0,0.000113,2]
[348963898,1736899842069,-500.0,0.000113,2]
[348963899,1736899842079,-500.0,0.000113,2]
[348963900,1736899842089,-500.0,0.000113,2]
[348963901,1736899842097,-500.0,0.000113,2]
[348963902,1736899842107,-500.0,0.000113,2]
[348963903,1736899842117,-500.0,0.000113,2]
[348963904,1736899842127,-500.0,0.000113,2]
[348963905,1736899842138,-500.0,0.000113,2]
[348963906,1736899842148,-500.0,0.000113,2]
[348963907,1736899842158,-500.0,0.000113,2]
[348963908,1736899842169,-540.22,0.000113,2]
[348963909,1736899842179,-500.0,0.000113,2]
[348963910,1736899842188,-151.0,0.000113,2]
[348963911,1736899842198,-1094.33267391,0.00011371,2]
[348963912,1736899842207,-1000.0,0.0001144,2]
[348963913,1736899842216,-161.83858765,0.00011457,2]
[348963914,1736899842226,-500.0,0.00011529,2]
[348963915,1736899842237,-500.0,0.00011529,2]
[348963916,1736899842246,-500.0,0.00011529,2]
[348963917,1736899842256,-627.16,0.00011529,2]
[348963918,1736899842266,-500.0,0.00011529,2]
[348963919,1736899842275,-500.0,0.00011529,2]
[348963920,1736899842284,-710.86,0.00011529,2]
[348963921,1736899842296,-1096.43,0.00011529,2]
[348963922,1736899842306,-1200.4,0.00011529,2]
[348963923,1736899842316,-1160.69,0.00011529,2]
[348963924,1736899842326,-789.57,0.00011529,2]
[348963925,1736899842335,-720.14,0.00011529,2]
[348963926,1736899842344,-518.27,0.00011529,2]
[348963927,1736899842353,-1474.41,0.00011529,2]
[348963928,1736899842363,-556.34,0.00011529,2]
[348963929,1736899842373,-553.96,0.00011529,2]
[348963930,1736899842383,-580.927481,0.00011529,2]
[348963931,1736899842394,-500.0,0.00011529,2]
[348963932,1736899842404,-750.05,0.00011529,2]
[348963933,1736899842414,-2081.45,0.00011529,2]
[348963934,1736899842424,-530.993958,0.00011529,2]
[348963935,1736899842433,-500.0,0.00011529,2]
[348963936,1736899842443,-500.0,0.00011529,2]
[348963937,1736899842452,-1393.34,0.00011529,2]
[348963938,1736899842461,-500.0,0.00011529,2]
[348963939,1736899842470,-583.39,0.00011529,2]
[348963940,1736899842479,-500.0,0.00011529,2]
[348963941,1736899842490,-500.0,0.0001153,2]
[348963942,1736899842499,-500.0,0.0001153,2]
[348963943,1736899842508,-500.0,0.0001153,2]
[348963944,1736899842518,-500.0,0.0001153,2]
[348963945,1736899842528,-500.0,0.0001153,2]
[348963946,1736899842538,-500.0,0.0001153,2]
[348963947,1736899842548,-500.0,0.0001153,2]
[348963948,1736899842558,-500.0,0.0001153,2]
[348963949,1736899842567,-500.0,0.0001153,2]
[348963950,1736899842576,-500.0,0.0001153,2]
[348963951,1736899842585,-500.0,0.0001153,2]
[348963952,1736899842594,-500.0,0.0001153,2]
[348963953,1736899842604,-500.0,0.0001153,2]
[348963954,1736899842613,-500.0,0.0001153,2]
[348963955,1736899842622,-500.0,0.0001153,2]
[348963956,1736899842631,-629.54,0.0001153,2]
[348963957,1736899842640,-500.0,0.0001153,2]
[348963958,1736899842649,-500.0,0.0001153,2]
[348963959,1736899842658,-500.0,0.0001153,2]
[348963960,1736899842669,-500.0,0.0001153,2]
[348963961,1736899842678,-500.0,0.0001153,2]
[348963962,1736899842687,-500.0,0.0001153,2]
[348963963,1736899842697,-500.0,0.0001153,2]
[348963964,1736899842706,-500.0,0.0001153,2]
[348963965,1736899842715,-500.0,0.0001153,2]
[348963966,1736899842724,-500.0,0.0001153,2]
[348963967,1736899842732,-500.0,0.0001153,2]
[348963968,1736899842742,-538.98,0.0001153,2]
[348963969,1736899842752,-500.0,0.0001153,2]
[348963970,1736899842761,-500.0,0.0001153,2]
[348963971,1736899842770,-500.0,0.0001153,2]
[348963972,1736899842781,-500.0,0.0001153,2]
[348963973,1736899842790,-500.0,0.0001153,2]
[348963974,1736899842799,-3035.64,0.0001153,2]
[348963975,1736899842809,-450.76,0.0001153,2]
[348963976,1736899842819,-500.0,0.0001153,2]
[348963977,1736899842831,-500.0,0.0001153,2]
[348963978,1736899842840,-500.0,0.0001153,2]
[348963979,1736899842849,-500.0,0.0001153,2]
[348963980,1736899842858,-500.0,0.0001153,2]
[348963981,1736899842867,-551.69,0.0001153,2]
[348963982,1736899842876,-500.0,0.0001153,2]
[348963983,1736899842886,-500.0,0.0001153,2]
[348963984,1736899842895,-500.0,0.0001153,2]
[348963985,1736899842904,-892.65,0.0001153,2]
[348963986,1736899842913,-500.0,0.0001153,2]
[348963987,1736899842922,-2116.18,0.0001153,2]
[348963988,1736899842931,-500.0,0.0001153,2]
[348963989,1736899842940,-1946.54,0.0001153,2]
[348963990,1736899842949,-500.0,0.0001153,2]
[348963991,1736899842958,-578.42,0.0001153,2]
[348963992,1736899842970,-500.0,0.0001153,2]
[348963993,1736899842979,-500.0,0.0001153,2]
[348963994,1736899842988,-1519.02,0.0001153,2]
[348963995,1736899842997,-945.24,0.0001153,2]
[348963996,1736899843006,-500.0,0.0001153,2]
[348963997,1736899843017,-1740.78,0.0001153,2]
[348963998,1736899843026,-563.56058998,0.0001153,2]
[348964000,1736899843036,-500.0,0.0001153,2]
[348964002,1736899843048,-709.4,0.0001153,2]
[348964004,1736899843057,-500.0,0.0001153,2]
[348964006,1736899843067,-500.0,0.0001153,2]
[348964007,1736899843076,-500.0,0.0001153,2]
[348964008,1736899843085,-576.19,0.0001153,2]
[348964009,1736899843095,-500.0,0.0001153,2]
[348964010,1736899843104,-500.0,0.0001153,2]
[348964011,1736899843113,-500.0,0.0001153,2]
[348964012,1736899843122,-500.0,0.0001153,2]
[348964013,1736899843131,-523.05,0.0001153,2]
[348964015,1736899843140,-500.0,0.0001153,2]
[348964017,1736899843151,-648.54,0.00011532,2]
[348964019,1736899843159,-3467.7,0.00011532,2]
[348964021,1736899843168,-947.24,0.00011532,2]
[348964022,1736899843177,-1436.89,0.00011532,2]
[348964023,1736899843186,-855.8,0.00011532,2]
[348964025,1736899843195,-500.0,0.00011532,2]
[348964026,1736899843204,-776.37,0.00011532,2]
[348964027,1736899843213,-1931.96,0.00011532,2]
[348964028,1736899843222,-151.0,0.00011545,2]
[348964029,1736899843231,-879.92,0.00011545,2]
[348964030,1736899843241,-500.0,0.00011545,2]
[348964031,1736899843250,-500.0,0.00011545,2]
[348964032,1736899843260,-539.68,0.00011545,2]
[348964033,1736899843269,-500.0,0.00011545,2]
[348964034,1736899843278,-926.87,0.00011545,2]
[348964035,1736899843287,-804.93,0.00011545,2]
[348964036,1736899843296,-804.93,0.00011545,2]